fUSD/lending_fUSD_20260413
["ID","MTS","AMOUNT","RATE_DAILY","PERIOD"]
[420381695,1776051034239,-687.93567904,0.00027767,2]
[420381696,1776051034271,-500.0,0.00027773,5]
[420381697,1776051034280,-500.0,0.00027773,5]
[420381698,1776051034295,-200.0,0.00027776,2]
[420381699,1776051034310,-811.07,0.0002778,10]
[420381700,1776051034319,-687.93567899,0.00027782,2]
[420381701,1776051034333,-420.99771931,0.00027789,2]
[420381702,1776051034363,-167.44,0.0002779,3]
[420381703,1776051034372,-448.55,0.0002779,3]
[420381704,1776051034383,-224.28,0.0002779,3]
[420381705,1776051034420,-672.86,0.0002779,3]
[420381706,1776051034430,-687.93567899,0.00027797,2]
[420381707,1776051034458,-500.0,0.00027799,2]
[420381708,1776051034469,-393.31021038,0.00027799,2]
[420381709,1776051034491,-500.0,0.00027799,2]
[420381710,1776051034504,-500.0,0.00027799,2]
[420381711,1776051034514,-451.02836624,0.00027799,2]
[420381712,1776051034541,-150.66468827,0.00027799,2]
[420381713,1776051034550,-28998.25863937,0.000278,2]
[420381714,1776051034618,-38.72430407,0.000278,2]
[420381715,1776051034634,-255.75980045,0.000278,2]
[420381716,1776051034658,-1107.62854378,0.000278,2]
[420381717,1776051037645,1519.456465,0.0002744,120]
[420381719,1776051038743,-350.32141952,0.00027799,2]
[420381720,1776051038755,-202.60971064,0.000278,2]
[420381721,1776051038802,-4992.61308658,0.000278,2]
[420381722,1776051038817,-72871.92575888,0.000278,2]
[420381723,1776051038852,-2917.5460326,0.000278,2]
[420381739,1776051040582,-563.24,0.0002779,10]
[420381741,1776051040592,-1795.49356464,0.000278,2]
[420381742,1776051040610,-1687.05392346,0.000278,2]
[420381743,1776051041314,-157148.01635938,0.000278,2]
[420381744,1776051041352,-36773.98448423,0.000278,2]
[420381745,1776051041431,-1021.26866791,0.000278,2]
[420381749,1776051041579,-591.07158026,0.000278,2]
[420381750,1776051041591,-644.38,0.000278,2]
[420381758,1776051043736,-245.22499367,0.00027799,2]
[420381759,1776051043751,-403.69544055,0.000278,2]
[420381761,1776051043901,-9757.66370945,0.000278,2]
[420381763,1776051043912,-661.24,0.000278,2]
[420381766,1776051046440,-650.01129907,0.000278,2]
[420381767,1776051046621,-0.80260972,0.000278,2]
[420381768,1776051046914,-6528.45232555,0.000278,2]
[420381769,1776051046935,-625.97460234,0.000278,2]
[420381771,1776051046950,-1930.59892602,0.000278,2]
[420381772,1776051046971,-1624.84334,0.000278,2]
[420381773,1776051046989,-715.2085,0.000278,2]
[420381774,1776051047005,-1141.551202,0.000278,2]
[420381777,1776051104795,500.0,0.00029452,120]
[420381782,1776051416910,1009.3031,0.0002945,120]
[420381786,1776051501074,2004.0,0.00030137,120]
[420382059,1776051902774,1038.55,0.00026518,120]
[420382065,1776052119904,-250.0,0.00013,2]
[420382066,1776052119935,-150.0,0.0001404,2]
[420382067,1776052119959,-189.94082826,0.00015261,2]
[420382068,1776052156965,1301.930254,0.00027894,120]
[420382071,1776052232547,-189.94082826,0.00015261,2]
[420382072,1776052232559,-453.1742,0.00022348,2]
[420382073,1776052232569,-4000.0,0.00022448,30]
[420382074,1776052232578,-766.90601667,0.00023755,2]
[420382075,1776052232696,-433.09398333,0.00023755,2]
[420382077,1776052232707,-9364.10581683,0.00023756,2]
[420382079,1776052232720,-150.0,0.00024136,2]
[420382081,1776052232731,-329.92308319,0.00024693,2]
[420382083,1776052232741,-166.66,0.00025534,30]
[420382084,1776052232754,-1680.0,0.00025885,2]
[420382086,1776052232771,-166.66,0.00026072,30]
[420382088,1776052232796,-157.48,0.00026085,2]
[420382090,1776052232805,-1188.7,0.00026173,2]
[420382092,1776052232824,-150.0,0.000263,2]
[420382094,1776052232859,-1703.81,0.00026323,2]
[420382096,1776052232871,-168.0,0.00026345,2]
[420382099,1776052232902,-151.0,0.00026353,2]
[420382102,1776052232912,-578.20924308,0.00026368,2]
[420382103,1776052232922,-500.0,0.00026368,2]
[420382105,1776052232944,-731.35934211,0.00026368,2]
[420382111,1776052238715,-315.64065789,0.00026368,2]
[420382112,1776052238727,-542.30984211,0.00026368,2]
[420382113,1776052238750,-725.48815789,0.00026368,2]
[420382114,1776052238761,-277.633,0.00026368,2]
[420382115,1776052238776,-845.37915429,0.00026368,2]
[420382116,1776052238793,-793.66649967,0.00026368,2]
[420382117,1776052238860,-1059.61303381,0.00026368,2]
[420382118,1776052238881,-660.21921695,0.00026368,2]
[420382130,1776052241034,-2200.0,0.00026368,2]
[420382131,1776052242021,-485.57509528,0.00026368,2]
[420382132,1776052242031,-151.0,0.00026408,2]
[420382133,1776052242068,-500.0,0.00026423,2]
[420382134,1776052242078,-500.0,0.00026513,2]
[420382135,1776052242110,-200.0,0.0002659,2]
[420382136,1776052242119,-166.66,0.00026609,30]
[420382137,1776052242151,-168.0,0.00026677,2]
[420382138,1776052242161,-168.0,0.00026795,2]
[420382139,1776052242177,-1852.42,0.00026877,2]
[420382140,1776052242193,-2029.86,0.0002689,2]
[420382141,1776052242205,-150.7991,0.000269,2]
[420382142,1776052242221,-806.0,0.00027052,10]
[420382143,1776052242249,-352.14357616,0.00027057,6]
[420382144,1776052242275,-212.24021888,0.00027123,2]
[420382145,1776052242286,-508.0,0.00027137,2]
[420382146,1776052242311,-166.66,0.00027147,30]
[420382147,1776052242324,-168.0,0.00027266,2]
[420382148,1776052242338,-157.18,0.00027397,2]
[420382149,1776052242365,-462.91,0.00027462,2]
[420382150,1776052242379,-653.3145,0.000275,2]
[420382151,1776052242414,-151.6025,0.000275,2]
[420382152,1776052242429,-210.4988597,0.00027503,2]
[420382153,1776052242443,-210.49885965,0.00027547,2]
[420382154,1776052242461,-200.0,0.00027583,2]
[420382155,1776052242474,-151.0,0.00027583,2]
[420382156,1776052242497,-151.0,0.00027583,2]
[420382157,1776052242518,-151.0,0.00027583,2]
[420382158,1776052242527,-151.0,0.00027583,2]
[420382159,1776052242545,-151.0,0.00027583,2]
[420382160,1776052242568,-151.0,0.00027583,2]
[420382161,1776052242578,-151.0,0.00027583,2]
[420382162,1776052242591,-151.0,0.00027583,2]
[420382163,1776052242616,-151.0,0.00027583,2]
[420382164,1776052242625,-151.0,0.00027583,2]
[420382165,1776052242636,-151.0,0.00027583,2]
[420382166,1776052242660,-151.0,0.00027583,2]
[420382167,1776052242670,-151.0,0.00027583,2]
[420382168,1776052242685,-151.0,0.00027583,2]
[420382169,1776052242698,-151.0,0.00027583,2]
[420382170,1776052242713,-151.0,0.00027583,2]
[420382171,1776052242722,-151.0,0.00027583,2]
[420382172,1776052242733,-151.0,0.00027583,2]
[420382173,1776052242745,-151.0,0.00027583,2]
[420382174,1776052242761,-151.0,0.00027583,2]
[420382175,1776052242776,-151.0,0.00027583,2]
[420382176,1776052242785,-151.0,0.00027583,2]
[420382177,1776052242811,-151.0,0.00027583,2]
[420382178,1776052242821,-151.0,0.00027583,2]
[420382179,1776052242831,-151.0,0.00027583,2]
[420382180,1776052242847,-224.27,0.0002759,3]
[420382181,1776052242856,-672.85,0.0002759,3]
[420382182,1776052242867,-670.39,0.0002759,10]
[420382183,1776052242880,-210.49885965,0.00027591,2]
[420382184,1776052242899,-500.0,0.00027599,15]
[420382185,1776052242909,-508.03570381,0.00027599,15]
[420382186,1776052243015,-166527.96179517,0.000276,2]
[420382188,1776052244267,-453.0,0.00027583,10]
[420382189,1776052246789,-157.18,0.00027397,2]
[420382190,1776052246802,-500.0,0.00027584,2]
[420382191,1776052246821,-197.58959307,0.000276,2]
[420382192,1776052246839,-5547.40013359,0.000276,2]
[420382193,1776052246955,-30.17896554,0.000276,2]
[420382194,1776052247378,-708.97,0.000276,2]
[420382195,1776052247407,-15067.86741554,0.000276,2]
[420382197,1776052250089,835.018668,0.0002744,120]
[420382200,1776052567337,275.107389,0.00029436,120]
[420382203,1776052676614,648.702777,0.00029024,120]
[420382204,1776052685222,-250.0,0.00016438,2]
[420382205,1776052685252,-240.0,0.00016438,2]
[420382206,1776052685282,-9510.0,0.00018,2]
[420382207,1776052686526,-10000.0,0.00018,2]
[420382208,1776052687805,-10000.0,0.00018,2]
[420382209,1776052687982,-10000.0,0.00018,2]
[420382210,1776052688312,-10000.0,0.00018,2]
[420382211,1776052688602,-10000.0,0.00018,2]
[420382212,1776052689078,-10000.0,0.00018,2]
[420382213,1776052689346,-10000.0,0.00018,2]
[420382214,1776052689658,-10000.0,0.00018,2]
[420382215,1776052690808,-10000.0,0.00018,2]
[420382216,1776052691071,-10000.0,0.00018,2]
[420382217,1776052691632,-10000.0,0.00018,2]
[420382218,1776052691796,-10000.0,0.00018,2]
[420382219,1776052693254,-10000.0,0.00018,2]
[420382220,1776052694283,-10000.0,0.00018,2]
[420382221,1776052695299,-10000.0,0.00018,2]
[420382222,1776052696436,-10000.0,0.00018,2]
[420382223,1776052697555,-10000.0,0.00018,2]
[420382224,1776052703452,-3720.0,0.00018,2]
[420382225,1776052772493,1000.0,0.00030137,120]
[420382226,1776052788473,-462.91,0.0001791,2]
[420382227,1776052788511,-202.0,0.00017999,2]
[420382228,1776052788554,-9335.09,0.00018,2]
[420382229,1776052789715,-10000.0,0.00018,2]
[420382230,1776052789763,288.187331,0.00027894,120]
[420382231,1776052790825,-10000.0,0.00018,2]
[420382232,1776052791900,-10000.0,0.00018,2]
[420382233,1776052793083,-10000.0,0.00018,2]
[420382234,1776052794175,-10000.0,0.00018,2]
[420382235,1776052795304,-10000.0,0.00018,2]
[420382236,1776052796201,-10000.0,0.00018,2]
[420382237,1776052888291,259.185465,0.00027894,120]
[420382243,1776052988439,254.000247,0.0002744,120]
[420382244,1776053007172,187.42,0.00025934,120]
[420382245,1776053039299,-369.54287439,0.00013,15]
[420382250,1776053348135,-954.86401268,0.0001305,2]
[420382251,1776053352155,-126.01932751,0.0001305,2]
[420382252,1776053352198,-200.0,0.0001599,2]
[420382253,1776053352265,-151.0,0.0001599,2]
[420382254,1776053352290,-151.0,0.0001599,2]
[420382255,1776053352319,-151.0,0.0001599,2]
[420382256,1776053352340,-151.0,0.0001599,2]
[420382257,1776053352362,-151.0,0.0001599,2]
[420382258,1776053352384,-151.0,0.0001599,2]
[420382259,1776053352406,-151.0,0.0001599,2]
[420382260,1776053352430,-151.0,0.0001599,2]
[420382261,1776053352457,-151.0,0.0001599,2]
[420382262,1776053352482,-151.0,0.0001599,2]
[420382263,1776053352513,-151.0,0.0001599,2]
[420382264,1776053352540,-151.0,0.0001599,2]
[420382265,1776053352566,-151.0,0.0001599,2]
[420382266,1776053352603,-500.0,0.0001599,2]
[420382267,1776053352630,-151.0,0.0001599,2]
[420382268,1776053352674,-178.15044173,0.0001599,2]
[420382269,1776053352713,-151.0,0.0001599,2]
[420382270,1776053352766,-151.0,0.0001599,2]
[420382271,1776053352805,-151.0,0.0001599,2]
[420382272,1776053352834,-151.0,0.0001599,2]
[420382273,1776053352866,-151.0,0.0001599,2]
[420382274,1776053352898,-151.0,0.0001599,2]
[420382275,1776053352944,-151.0,0.0001599,2]
[420382276,1776053352997,-151.0,0.0001599,2]
[420382277,1776053353040,-151.0,0.0001599,2]
[420382278,1776053353076,-151.0,0.0001599,2]
[420382279,1776053353098,-151.0,0.0001599,2]
[420382280,1776053353128,-151.0,0.0001599,2]
[420382281,1776053353166,-151.0,0.0001599,2]
[420382282,1776053353202,-151.0,0.0001599,2]
[420382283,1776053353257,-283.38348587,0.0001599,2]
[420382284,1776053353284,-74.59958946,0.0001599,2]
[420382285,1776053357194,-76.40041054,0.0001599,2]
[420382286,1776053357224,-1060.0,0.00015999,2]
[420382287,1776053357253,-93988.05994048,0.00016,2]
[420382288,1776053357275,-8170.71987049,0.00016,2]
[420382289,1776053357325,-200.0,0.00016538,2]
[420382290,1776053357352,-37648.26771869,0.00018,2]
[420382291,1776053357389,-178.551485,0.00019651,2]
[420382292,1776053357410,-200.0,0.00021918,2]
[420382293,1776053357436,-340.0,0.00021918,2]
[420382294,1776053357462,-2540.1926236,0.00022041,2]
[420382295,1776053357484,-210.4988597,0.00023829,2]
[420382296,1776053357514,-787.0,0.00023929,7]
[420382297,1776053357541,-210.49885965,0.00024281,2]
[420382298,1776053357568,-150.0,0.000243,2]
[420382299,1776053357598,-151.0,0.00024339,2]
[420382300,1776053357626,-174.61919141,0.00024339,2]
[420382301,1776053357656,-500.0,0.00024395,2]
[420382302,1776053357709,-371.71568688,0.00024395,2]
[420382305,1776053431875,-2168.47693672,0.00024395,2]
[420382306,1776053431899,-210.49885965,0.00024734,2]
[420382307,1776053431936,-210.49885965,0.00025186,2]
[420382308,1776053431948,-150.0,0.00025437,2]
[420382309,1776053431979,-210.49885965,0.00025638,2]
[420382310,1776053431989,-210.49885965,0.00026091,2]
[420382311,1776053432030,-150.0,0.000263,2]
[420382312,1776053432054,-623.943,0.00026368,2]
[420382313,1776053432070,-3240.0,0.00026409,2]
[420382314,1776053432086,-453.08,0.00026453,2]
[420382315,1776053432105,-754.0,0.00026461,10]
[420382316,1776053432126,-226.27,0.00026539,3]
[420382317,1776053432141,-210.49885965,0.00026543,2]
[420382319,1776053432162,-150.0,0.00026556,2]
[420382321,1776053432178,-224.27,0.00026595,3]
[420382323,1776053432203,-672.85,0.00026595,3]
[420382326,1776053432220,-2000.0,0.00026605,2]
[420382329,1776053432230,-805.1,0.00026667,2]
[420382331,1776053432247,-2540.1926236,0.0002675,2]
[420382333,1776053432258,-503.37955602,0.00026762,2]
[420382335,1776053432268,-162.77554069,0.00026762,2]
[420382336,1776053432280,-500.0,0.00026762,2]
[420382337,1776053432291,-500.0,0.00026762,2]
[420382338,1776053432305,-500.0,0.00026762,2]
[420382339,1776053432315,-500.0,0.00026762,2]
[420382340,1776053432334,-500.0,0.00026762,2]
[420382341,1776053432345,-500.0,0.00026762,2]
[420382342,1776053432360,-378.15591797,0.00026762,2]
[420382343,1776053432378,-500.0,0.00026762,2]
[420382344,1776053432390,-150.0,0.00026762,2]
[420382345,1776053432401,-613.92194912,0.00026762,2]
[420382346,1776053432420,-500.0,0.00026762,2]
[420382347,1776053432430,-500.0,0.00026762,2]
[420382348,1776053432440,-500.0,0.00026762,2]
[420382349,1776053432458,-500.0,0.00026762,2]
[420382350,1776053432470,-500.0,0.00026762,2]
[420382351,1776053432481,-500.0,0.00026762,2]
[420382352,1776053432500,-500.0,0.00026762,2]
[420382353,1776053432518,-500.0,0.00026762,2]
[420382354,1776053432531,-500.0,0.00026762,2]
[420382355,1776053432548,-500.0,0.00026762,2]
[420382356,1776053432567,-500.0,0.00026762,2]
[420382357,1776053432582,-500.0,0.00026762,2]
[420382358,1776053432615,-500.0,0.00026762,2]
[420382359,1776053432659,-282.87326252,0.00026762,2]
[420382360,1776053432703,-500.0,0.00026762,2]
[420382361,1776053432729,-245.03515654,0.00026762,2]
[420382362,1776053432746,-463.27285639,0.00026762,2]
[420382363,1776053432761,-150.0,0.00026762,2]
[420382364,1776053432774,-1051.0,0.00026762,2]
[420382365,1776053432783,-1051.0,0.00026762,2]
[420382366,1776053432798,-1051.0,0.00026762,2]
[420382367,1776053432807,-150.0,0.00026762,2]
[420382368,1776053432817,-165.27012757,0.00026762,2]
[420382369,1776053432828,-1051.0,0.00026762,2]
[420382370,1776053432843,-152.00320659,0.00026762,2]
[420382371,1776053432854,-1051.0,0.00026762,2]
[420382372,1776053432863,-281.71316019,0.00026762,2]
[420382373,1776053432873,-1051.0,0.00026762,2]
[420382374,1776053432887,-1051.0,0.00026762,2]
[420382375,1776053432899,-1051.0,0.00026762,2]
[420382376,1776053432911,-1051.0,0.00026762,2]
[420382377,1776053432924,-1051.0,0.00026762,2]
[420382378,1776053432943,-500.0,0.00026762,2]
[420382379,1776053432955,-500.0,0.00026762,2]
[420382380,1776053432969,-1051.0,0.00026762,2]
[420382381,1776053432987,-500.0,0.00026762,2]
[420382382,1776053432998,-1051.0,0.00026762,2]
[420382383,1776053433008,-500.0,0.00026762,2]
[420382384,1776053433033,-1051.0,0.00026762,2]
[420382385,1776053433046,-500.0,0.00026762,2]
[420382386,1776053433055,-1051.0,0.00026762,2]
[420382387,1776053433079,-505.72457062,0.00026762,2]
[420382388,1776053433091,-1051.0,0.00026762,2]
[420382389,1776053433105,-1051.0,0.00026762,2]
[420382390,1776053433120,-1051.0,0.00026762,2]
[420382391,1776053433133,-1051.0,0.00026762,2]
[420382392,1776053433142,-1051.0,0.00026762,2]
[420382393,1776053433151,-1051.0,0.00026762,2]
[420382394,1776053433168,-1051.0,0.00026762,2]
[420382395,1776053433177,-1051.0,0.00026762,2]
[420382396,1776053433187,-1051.0,0.00026762,2]
[420382397,1776053433196,-1067.0,0.00026762,2]
[420382398,1776053433208,-500.0,0.00026762,2]
[420382399,1776053433217,-500.0,0.00026762,2]
[420382400,1776053433228,-500.0,0.00026762,2]
[420382401,1776053433237,-319.23128294,0.00026762,2]
[420382402,1776053433250,-162.10283094,0.00026762,2]
[420382403,1776053433260,-1000.0,0.00026828,2]
[420382404,1776053433270,-254.17,0.00026863,2]
[420382405,1776053433280,-150.2893,0.000269,2]
[420382406,1776053433289,-210.49885965,0.00026995,2]
[420382407,1776053433301,-154.86476089,0.00027036,2]
[420382408,1776053433311,-150.0,0.00027036,2]
[420382409,1776053433321,-500.0,0.00027036,2]
[420382410,1776053433334,-150.0,0.00027036,2]
[420382411,1776053433343,-500.0,0.00027036,2]
[420382412,1776053433353,-500.0,0.00027036,2]
[420382413,1776053433363,-302.94535556,0.00027036,2]
[420382414,1776053433374,-150.0,0.00027036,2]
[420382415,1776053433683,-239.74746028,0.00027036,2]
[420382416,1776053433727,-653.3145,0.00027109,2]
[420382417,1776053433736,-453.08,0.00027114,2]
[420382418,1776053433746,-508.0,0.00027137,2]
[420382419,1776053433767,-500.0,0.00027209,2]
[420382420,1776053433777,-500.0,0.00027209,2]
[420382421,1776053433786,-508.03570381,0.00027209,2]
[420382422,1776053433798,-500.0,0.00027209,2]
[420382423,1776053433808,-187.98818762,0.00027209,2]
[420382424,1776053433818,-500.0,0.00027209,2]
[420382425,1776053433827,-286.25059388,0.00027209,2]
[420382426,1776053433839,-500.0,0.00027209,2]
[420382427,1776053433849,-500.0,0.00027209,2]
[420382428,1776053433861,-500.0,0.00027209,2]
[420382429,1776053433873,-500.0,0.00027209,2]
[420382430,1776053433886,-500.0,0.00027209,2]
[420382431,1776053433895,-268.99935835,0.00027209,2]
[420382432,1776053433908,-500.0,0.00027209,2]
[420382433,1776053433920,-500.0,0.00027209,2]
[420382434,1776053433934,-255.36205886,0.00027209,2]
[420382435,1776053433947,-500.0,0.00027209,2]
[420382436,1776053433961,-500.0,0.00027209,2]
[420382437,1776053433971,-556.49571376,0.00027209,2]
[420382438,1776053433980,-203.37911399,0.00027209,2]
[420382439,1776053434000,-500.0,0.00027209,2]
[420382440,1776053434009,-500.0,0.00027209,2]
[420382441,1776053434018,-500.0,0.00027209,2]
[420382442,1776053434038,-473.61372024,0.00027209,2]
[420382443,1776053434050,-500.0,0.00027209,2]
[420382444,1776053434059,-500.0,0.00027209,2]
[420382445,1776053434074,-500.0,0.00027209,2]
[420382446,1776053434094,-500.0,0.00027209,2]
[420382447,1776053434103,-175.70132531,0.00027209,2]
[420382448,1776053434118,-180.26727959,0.00027209,2]
[420382449,1776053434136,-500.0,0.00027209,2]
[420382450,1776053434146,-500.0,0.00027209,2]
[420382451,1776053434162,-439.31021836,0.00027209,2]
[420382452,1776053434175,-500.0,0.00027209,2]
[420382453,1776053434184,-500.0,0.00027209,2]
[420382454,1776053434193,-49.05193624,0.00027209,2]
[420382455,1776053434219,-448.75607779,0.00027209,2]
[420382456,1776053434229,-1063.66817495,0.00027209,2]
[420382457,1776053434239,-1063.66817495,0.00027209,2]
[420382458,1776053434251,-1063.66817495,0.00027209,2]
[420382459,1776053434264,-1063.66817495,0.00027209,2]
[420382460,1776053434274,-1063.66817495,0.00027209,2]
[420382461,1776053434283,-1063.66817495,0.00027209,2]
[420382462,1776053434293,-1063.66817495,0.00027209,2]
[420382463,1776053434306,-1063.66817495,0.00027209,2]
[420382464,1776053434315,-1063.66817495,0.00027209,2]
[420382465,1776053434324,-1063.66817495,0.00027209,2]
[420382466,1776053434333,-1063.66817495,0.00027209,2]
[420382467,1776053434342,-1063.66817495,0.00027209,2]
[420382468,1776053434351,-1063.66817495,0.00027209,2]
[420382469,1776053434360,-1063.66817495,0.00027209,2]
[420382470,1776053434370,-1063.66817495,0.00027209,2]
[420382471,1776053434380,-1063.66817495,0.00027209,2]
[420382472,1776053434389,-1063.66817495,0.00027209,2]
[420382473,1776053434399,-1063.66817495,0.00027209,2]
[420382474,1776053434408,-1063.66817495,0.00027209,2]
[420382475,1776053434418,-1063.66817495,0.00027209,2]
[420382476,1776053434429,-1063.66817495,0.00027209,2]
[420382477,1776053434439,-1063.66817495,0.00027209,2]
[420382478,1776053434448,-1063.66817495,0.00027209,2]
[420382479,1776053434457,-1063.66817495,0.00027209,2]
[420382480,1776053434468,-1063.66817495,0.00027209,2]
[420382481,1776053434477,-1063.66817495,0.00027209,2]
[420382482,1776053434486,-1063.66817495,0.00027209,2]
[420382483,1776053434496,-1063.66817495,0.00027209,2]
[420382484,1776053434505,-1063.66817495,0.00027209,2]
[420382485,1776053434515,-1063.66817495,0.00027209,2]
[420382486,1776053434524,-308.78551229,0.00027209,2]
[420382487,1776053434536,-625.6194234,0.00027209,2]
[420382488,1776053434548,-129.26323926,0.00027209,2]
[420382489,1776053434557,-1063.66817495,0.00027209,2]
[420382490,1776053434566,-437.94527762,0.00027209,2]
[420382491,1776053434578,-625.72289733,0.00027209,2]
[420382492,1776053434587,-1063.66817495,0.00027209,2]
[420382493,1776053434597,-472.42431148,0.00027209,2]
[420382494,1776053434636,-591.24386347,0.00027209,2]
[420382495,1776053434645,-30.99985292,0.00027209,2]
[420382496,1776053434657,-1032.66832203,0.00027209,2]
[420382497,1776053434666,-367.61500951,0.00027209,2]
[420382498,1776053434683,-696.05316544,0.00027209,2]
[420382499,1776053434694,-121.74272048,0.00027209,2]
[420382500,1776053434729,-941.92545447,0.00027209,2]
[420382501,1776053434740,-132.08664127,0.00027209,2]
[420382502,1776053434758,-931.58153368,0.00027209,2]
[420382503,1776053434780,-1063.66817495,0.00027209,2]
[420382504,1776053434789,-1063.66817495,0.00027209,2]
[420382505,1776053434799,-1063.66817495,0.00027209,2]
[420382506,1776053434808,-1063.66817495,0.00027209,2]
[420382507,1776053434825,-1063.66817495,0.00027209,2]
[420382508,1776053434834,-500.0,0.00027209,2]
[420382509,1776053434844,-181.3669966,0.00027209,2]
[420382510,1776053434856,-248.23115473,0.00027209,2]
[420382511,1776053434867,-1042.39481145,0.00027209,2]
[420382512,1776053434880,-1042.39481145,0.00027209,2]
[420382513,1776053434890,-1042.39481145,0.00027209,2]
[420382514,1776053434906,-1042.39481145,0.00027209,2]
[420382515,1776053434921,-1042.39481145,0.00027209,2]
[420382516,1776053434932,-1042.39481145,0.00027209,2]
[420382517,1776053434945,-1042.39481145,0.00027209,2]
[420382518,1776053434963,-1042.39481145,0.00027209,2]
[420382519,1776053434976,-1042.39481145,0.00027209,2]
[420382520,1776053434986,-903.66627138,0.00027209,2]
[420382521,1776053435022,-138.72854007,0.00027209,2]
[420382522,1776053435036,-1042.39481145,0.00027209,2]
[420382523,1776053435059,-1042.39481145,0.00027209,2]
[420382524,1776053435073,-1042.39481145,0.00027209,2]
[420382525,1776053435093,-1042.39481145,0.00027209,2]
[420382526,1776053435127,-1042.39481145,0.00027209,2]
[420382527,1776053435140,-1042.39481145,0.00027209,2]
[420382528,1776053435166,-1042.39481145,0.00027209,2]
[420382529,1776053435185,-1042.39481145,0.00027209,2]
[420382530,1776053435211,-522.40936722,0.00027209,2]
[420382531,1776053435252,-278.617552,0.00027209,2]
[420382532,1776053435328,-241.36789223,0.00027209,2]
[420382533,1776053435345,-1042.39481145,0.00027209,2]
[420382534,1776053435367,-1042.39481145,0.00027209,2]
[420382535,1776053435385,-1042.39481145,0.00027209,2]
[420382536,1776053435395,-363.50861424,0.00027209,2]
[420382539,1776053439271,-178.23,0.00025864,2]
[420382540,1776053439295,-165.92532185,0.00027209,2]
[420382541,1776053441186,-512.96087536,0.00027209,2]
[420382542,1776053441198,-1042.39481145,0.00027209,2]
[420382543,1776053441208,-1042.39481145,0.00027209,2]
[420382544,1776053441226,-1042.39481145,0.00027209,2]
[420382545,1776053441239,-1055.42474659,0.00027209,2]
[420382546,1776053441248,-1055.42474659,0.00027209,2]
[420382547,1776053441269,-1055.42474659,0.00027209,2]
[420382548,1776053441278,-1055.42474659,0.00027209,2]
[420382549,1776053441291,-1055.42474659,0.00027209,2]
[420382550,1776053441317,-1055.42474659,0.00027209,2]
[420382551,1776053441327,-1055.42474659,0.00027209,2]
[420382552,1776053441336,-1055.42474659,0.00027209,2]
[420382553,1776053441345,-1055.42474659,0.00027209,2]
[420382554,1776053441359,-1055.42474659,0.00027209,2]
[420382555,1776053441368,-1055.42474659,0.00027209,2]
[420382556,1776053441377,-1055.42474659,0.00027209,2]
[420382557,1776053441386,-414.75773121,0.00027209,2]
[420382558,1776053441406,-640.66701538,0.00027209,2]
[420382559,1776053441415,-211.08730342,0.00027209,2]
[420382560,1776053441810,-0.37250777,0.00027209,2]
[420382561,1776053441853,-843.9649354,0.00027209,2]
[420382562,1776053441873,-1055.42474659,0.00027209,2]
[420382563,1776053441891,-1055.42474659,0.00027209,2]
[420382564,1776053441917,-1055.42474659,0.00027209,2]
[420382565,1776053441947,-7379.54829645,0.0002721,2]
[420382571,1776053443979,-150.0,0.00026762,2]
[420382572,1776053443996,-150.0,0.00026762,2]
[420382573,1776053444006,-215.60943737,0.00026762,2]
[420382574,1776053444016,-723.0,0.00027209,10]
[420382575,1776053444029,-142154.6308327,0.0002721,2]
[420382576,1776053444181,-150.0,0.00026762,2]
[420382577,1776053444196,-121.96277641,0.00026762,2]
[420382580,1776053445986,-28.03722359,0.00026762,2]
[420382581,1776053445998,-150.0,0.00026762,2]